[Event "FIDE U16 Olympiad_boards_1-80"]
[Site "Eindhoven, Netherlands"]
[Date "2023.08.14"]
[Round "3.32"]
[White "Gkoutzouki, Aikaterini Argyro"]
[Black "Orian, Noga"]
[Result "0-1"]
[TimeControl "2700+10"]
[WhiteElo "1548"]
[BlackElo "1866"]

1. d4 {[%clk 00:45:18]} {[%emt 00:00:02]} Nf6 {[%clk 00:45:17]} {[%emt
00:00:03]} 2. c4 {[%clk 00:45:10]} {[%emt 00:00:18]} e6 {[%clk 00:45:24]}
{[%emt 00:00:04]} 3. Nf3 {[%clk 00:44:58]} {[%emt 00:00:21]} d5 {[%clk
00:45:30]} {[%emt 00:00:04]} 4. Nc3 {[%clk 00:44:57]} {[%emt 00:00:12]} dxc4
{[%clk 00:45:31]} {[%emt 00:00:09]} 5. e3 {[%clk 00:43:46]} {[%emt 00:01:21]}
a6 {[%clk 00:45:33]} {[%emt 00:00:08]} 6. a4 {[%clk 00:42:15]} {[%emt
00:01:40]} b6 {[%clk 00:45:32]} {[%emt 00:00:12]} 7. Bxc4 {[%clk 00:41:57]}
{[%emt 00:00:28]} Bb7 {[%clk 00:45:37]} {[%emt 00:00:04]} 8. O-O {[%clk
00:41:03]} {[%emt 00:01:05]} Bb4 {[%clk 00:45:35]} {[%emt 00:00:12]} 9. Ne5
{[%clk 00:37:29]} {[%emt 00:03:43]} O-O {[%clk 00:43:12]} {[%emt 00:02:33]} 10.
Qb3 {[%clk 00:36:09]} {[%emt 00:01:29]} Qe7 {[%clk 00:42:42]} {[%emt 00:00:41]}
11. f3 {[%clk 00:32:53]} {[%emt 00:03:26]} Bd6 {[%clk 00:37:55]} {[%emt
00:04:58]} 12. Nd3 {[%clk 00:30:23]} {[%emt 00:02:40]} Nbd7 {[%clk 00:37:55]}
{[%emt 00:00:09]} 13. e4 {[%clk 00:29:40]} {[%emt 00:00:53]} e5 {[%clk
00:37:56]} {[%emt 00:00:10]} 14. d5 {[%clk 00:28:57]} {[%emt 00:00:53]} Nc5
{[%clk 00:37:53]} {[%emt 00:00:13]} 15. Nxc5 {[%clk 00:28:45]} {[%emt
00:00:21]} Bxc5+ {[%clk 00:38:00]} {[%emt 00:00:03]} 16. Kh1 {[%clk 00:28:49]}
{[%emt 00:00:06]} Ne8 {[%clk 00:37:18]} {[%emt 00:00:52]} 17. Ne2 {[%clk
00:26:33]} {[%emt 00:02:26]} Nd6 {[%clk 00:37:16]} {[%emt 00:00:13]} 18. Bd3
{[%clk 00:26:35]} {[%emt 00:00:06]} f5 {[%clk 00:32:44]} {[%emt 00:04:44]} 19.
exf5 {[%clk 00:24:00]} {[%emt 00:02:45]} Qf7 {[%clk 00:32:51]} {[%emt
00:00:02]} 20. Qc3 {[%clk 00:21:55]} {[%emt 00:02:14]} Nxf5 {[%clk 00:30:03]}
{[%emt 00:02:58]} 21. Qxe5 {[%clk 00:20:56]} {[%emt 00:01:09]} Rae8 {[%clk
00:28:57]} {[%emt 00:01:17]} 22. Qxf5 {[%clk 00:20:00]} {[%emt 00:01:06]} Qxf5
{[%clk 00:29:05]} {[%emt 00:00:02]} 23. Bxf5 {[%clk 00:20:05]} {[%emt
00:00:05]} Rxf5 {[%clk 00:29:12]} {[%emt 00:00:03]} 24. Ng3 {[%clk 00:17:48]}
{[%emt 00:02:26]} Rxd5 {[%clk 00:29:12]} {[%emt 00:00:11]} 25. b3 {[%clk
00:14:12]} {[%emt 00:03:47]} Bb4 {[%clk 00:27:09]} {[%emt 00:02:12]} 26. Bf4
{[%clk 00:12:19]} {[%emt 00:02:02]} Re7 {[%clk 00:19:32]} {[%emt 00:07:48]} 27.
Rac1 {[%clk 00:10:05]} {[%emt 00:02:24]} c5 {[%clk 00:17:56]} {[%emt 00:01:46]}
28. Ne4 {[%clk 00:08:13]} {[%emt 00:02:02]} Red7 {[%clk 00:15:54]} {[%emt
00:02:12]} 29. Nf2 {[%clk 00:06:48]} {[%emt 00:01:35]} Bd2 {[%clk 00:12:46]}
{[%emt 00:03:18]} 30. Bxd2 {[%clk 00:06:21]} {[%emt 00:00:38]} Rxd2 {[%clk
00:12:54]} {[%emt 00:00:02]} 31. Rb1 {[%clk 00:05:13]} {[%emt 00:01:18]} Re2
{[%clk 00:11:59]} {[%emt 00:01:05]} 32. Nh3 {[%clk 00:04:17]} {[%emt 00:01:05]}
Kf7 {[%clk 00:08:44]} {[%emt 00:03:24]} 33. Kg1 {[%clk 00:03:07]} {[%emt
00:01:21]} Rd4 {[%clk 00:05:56]} {[%emt 00:02:59]} 34. Rfd1 {[%clk 00:02:01]}
{[%emt 00:01:15]} Red2 {[%clk 00:05:24]} {[%emt 00:00:42]} 35. Rxd2 {[%clk
00:01:46]} {[%emt 00:00:26]} Rxd2 {[%clk 00:05:32]} {[%emt 00:00:01]} 36. Nf2
{[%clk 00:01:08]} {[%emt 00:00:48]} Bd5 {[%clk 00:04:56]} {[%emt 00:00:47]} 37.
Ng4 {[%clk 00:01:14]} {[%emt 00:00:04]} Ke6 {[%clk 00:03:41]} {[%emt 00:01:24]}
38. Ne3 {[%clk 00:01:09]} {[%emt 00:00:15]} b5 {[%clk 00:01:03]} {[%emt
00:02:48]} 39. axb5 {[%clk 00:00:31]} {[%emt 00:00:48]} axb5 {[%clk 00:01:12]}
40. Re1 {[%clk 00:00:40]} {[%emt 00:00:02]} Kd6 {[%clk 00:00:32]} {[%emt
00:00:50]} 41. Nf5+ {[%clk 00:00:38]} {[%emt 00:00:12]} Kc6 {[%clk 00:00:41]}
42. Ne7+ {[%clk 00:00:33]} {[%emt 00:00:15]} Kd7 {[%clk 00:00:18]} {[%emt
00:00:32]} 43. Nxd5 {[%clk 00:00:38]} {[%emt 00:00:06]} Rxd5 {[%clk 00:00:27]}
44. Re2 {[%clk 00:00:47]} {[%emt 00:00:01]} Rd3 {[%clk 00:00:33]} {[%emt
00:00:03]} 45. Rb2 {[%clk 00:00:56]} {[%emt 00:00:02]} Kd6 {[%clk 00:00:41]}
{[%emt 00:00:01]} 46. Kf2 {[%clk 00:01:05]} {[%emt 00:00:01]} Kd5 {[%clk
00:00:18]} {[%emt 00:00:34]} 47. Ke2 {[%clk 00:01:10]} {[%emt 00:00:05]} Kd4
{[%clk 00:00:13]} {[%emt 00:00:15]} 48. Rd2 {[%clk 00:00:18]} {[%emt 00:01:02]}
Rxd2+ {[%clk 00:00:22]} {[%emt 00:00:01]} 49. Kxd2 {[%clk 00:00:26]} h5 {[%clk
00:00:13]} {[%emt 00:00:20]} 50. g3 {[%clk 00:00:13]} {[%emt 00:00:23]} g6
{[%clk 00:00:12]} {[%emt 00:00:12]} 51. f4 {[%clk 00:00:13]} {[%emt 00:00:10]}
Ke4 {[%clk 00:00:14]} {[%emt 00:00:08]} 52. Ke2 {[%clk 00:00:12]} {[%emt
00:00:11]} c4 {[%clk 00:00:13]} {[%emt 00:00:11]} 53. bxc4 {[%clk 00:00:20]}
bxc4 {[%clk 00:00:22]} 54. Kd2 {[%clk 00:00:30]} Kf3 {[%clk 00:00:27]} {[%emt
00:00:05]} 55. Kc3 {[%clk 00:00:39]} {[%emt 00:00:01]} Kg2 {[%clk 00:00:36]} 56.
Kxc4 {[%clk 00:00:48]} {[%emt 00:00:02]} Kxh2 {[%clk 00:00:44]} 57. Kd4 {[%clk
00:00:55]} {[%emt 00:00:03]} Kxg3 {[%clk 00:00:51]} {[%emt 00:00:03]} 58. Ke3
{[%clk 00:00:25]} {[%emt 00:00:40]} h4 {[%clk 00:00:59]} {[%emt 00:00:03]} 59.
Kd4 {[%emt 00:00:10]} 0-1

[Event "FIDE U16 Olympiad_boards_1-80"]
[Site "Eindhoven, Netherlands"]
[Date "2023.08.14"]
[Round "3.33"]
[White "Borrmann, Laurenz"]
[Black "Pidluznij, Gleb"]
[Result "0-1"]
[TimeControl "2700+10"]
[WhiteElo "2238"]
[BlackElo "2143"]

1. d4 {[%clk 00:45:17]} {[%emt 00:00:02]} Nf6 {[%clk 00:45:14]} {[%emt
00:00:06]} 2. c4 {[%clk 00:45:25]} {[%emt 00:00:03]} e6 {[%clk 00:45:21]}
{[%emt 00:00:03]} 3. Nf3 {[%clk 00:45:30]} {[%emt 00:00:04]} a6 {[%clk
00:45:28]} {[%emt 00:00:03]} 4. Nc3 {[%clk 00:45:26]} {[%emt 00:00:14]} d5
{[%clk 00:45:36]} {[%emt 00:00:03]} 5. cxd5 {[%clk 00:45:32]} {[%emt 00:00:05]}
exd5 {[%clk 00:45:42]} {[%emt 00:00:03]} 6. Bg5 {[%clk 00:45:36]} {[%emt
00:00:05]} Be6 {[%clk 00:45:49]} {[%emt 00:00:04]} 7. e3 {[%clk 00:45:39]}
{[%emt 00:00:07]} Nbd7 {[%clk 00:45:52]} {[%emt 00:00:05]} 8. Bd3 {[%clk
00:45:46]} {[%emt 00:00:05]} c6 {[%clk 00:45:54]} {[%emt 00:00:07]} 9. O-O
{[%clk 00:45:51]} {[%emt 00:00:05]} Bd6 {[%clk 00:45:59]} {[%emt 00:00:05]} 10.
Bf4 {[%clk 00:45:44]} {[%emt 00:00:17]} Qc7 {[%clk 00:46:05]} {[%emt 00:00:05]}
11. Qd2 {[%clk 00:45:45]} {[%emt 00:00:09]} O-O {[%clk 00:45:15]} {[%emt
00:00:59]} 12. h3 {[%clk 00:45:30]} {[%emt 00:00:25]} Nh5 {[%clk 00:39:16]}
{[%emt 00:06:10]} 13. Bxd6 {[%clk 00:45:03]} {[%emt 00:00:37]} Qxd6 {[%clk
00:39:23]} {[%emt 00:00:02]} 14. Rac1 {[%clk 00:37:28]} {[%emt 00:07:45]} g6
{[%clk 00:36:36]} {[%emt 00:02:58]} 15. Rfe1 {[%clk 00:35:59]} {[%emt
00:01:38]} Rfe8 {[%clk 00:31:43]} {[%emt 00:05:03]} 16. Na4 {[%clk 00:33:39]}
{[%emt 00:02:31]} Ng7 {[%clk 00:28:40]} {[%emt 00:03:12]} 17. Nc5 {[%clk
00:32:53]} {[%emt 00:00:57]} Ra7 {[%clk 00:23:19]} {[%emt 00:05:31]} 18. e4
{[%clk 00:28:26]} {[%emt 00:04:36]} dxe4 {[%clk 00:19:33]} {[%emt 00:03:55]} 19.
Nxe4 {[%clk 00:28:25]} {[%emt 00:00:12]} Qf8 {[%clk 00:19:16]} {[%emt
00:00:26]} 20. Ne5 {[%clk 00:24:19]} {[%emt 00:04:18]} Qe7 {[%clk 00:12:28]}
{[%emt 00:06:58]} 21. Qf4 {[%clk 00:21:06]} {[%emt 00:03:22]} Nh5 {[%clk
00:12:14]} {[%emt 00:00:25]} 22. Qh6 {[%clk 00:18:35]} {[%emt 00:02:41]} Qf8
{[%clk 00:10:30]} {[%emt 00:01:54]} 23. Qg5 {[%clk 00:15:23]} {[%emt 00:03:21]}
Qe7 {[%clk 00:07:09]} {[%emt 00:03:32]} 24. Qe3 {[%clk 00:09:19]} {[%emt
00:06:14]} Raa8 {[%clk 00:05:51]} {[%emt 00:01:28]} 25. Nxd7 {[%clk 00:07:17]}
{[%emt 00:02:12]} Qxd7 {[%clk 00:02:19]} {[%emt 00:03:41]} 26. g4 {[%clk
00:06:55]} {[%emt 00:00:33]} Bxg4 {[%clk 00:02:28]} {[%emt 00:00:01]} 27. hxg4
{[%clk 00:07:04]} {[%emt 00:00:01]} Qxg4+ {[%clk 00:02:37]} 28. Kh2 {[%clk
00:07:11]} {[%emt 00:00:02]} f5 {[%clk 00:02:43]} {[%emt 00:00:05]} 29. Bc4+
{[%clk 00:05:34]} {[%emt 00:01:47]} Kg7 {[%clk 00:02:40]} {[%emt 00:00:13]} 30.
Qh3 {[%clk 00:03:51]} {[%emt 00:01:53]} Qxh3+ {[%clk 00:02:22]} {[%emt
00:00:29]} 31. Kxh3 {[%clk 00:04:00]} {[%emt 00:00:01]} fxe4 {[%clk 00:02:31]}
{[%emt 00:00:01]} 32. Rc3 {[%clk 00:03:48]} {[%emt 00:00:21]} Rad8 {[%clk
00:02:07]} {[%emt 00:00:34]} 33. Rd1 {[%clk 00:03:19]} {[%emt 00:00:40]} Nf6
{[%clk 00:02:00]} {[%emt 00:00:16]} 34. Rb3 {[%clk 00:03:11]} {[%emt 00:00:18]}
Re7 {[%clk 00:02:01]} {[%emt 00:00:09]} 35. Be2 {[%clk 00:03:08]} {[%emt
00:00:13]} Red7 {[%clk 00:01:33]} {[%emt 00:00:38]} 36. Re1 {[%clk 00:03:00]}
{[%emt 00:00:18]} b5 {[%clk 00:01:11]} {[%emt 00:00:32]} 37. Ra3 {[%clk
00:02:27]} {[%emt 00:00:43]} Rxd4 {[%clk 00:00:54]} {[%emt 00:00:27]} 38. Rxa6
{[%clk 00:02:36]} R8d6 {[%clk 00:00:53]} {[%emt 00:00:11]} 39. Ra7+ {[%clk
00:02:21]} {[%emt 00:00:25]} Kh6 {[%clk 00:00:59]} {[%emt 00:00:05]} 40. Kg3
{[%clk 00:01:41]} {[%emt 00:00:49]} Kg5 {[%clk 00:01:07]} {[%emt 00:00:02]} 41.
b3 {[%clk 00:01:44]} {[%emt 00:00:07]} h5 {[%clk 00:01:09]} {[%emt 00:00:09]}
42. Rg1 {[%clk 00:01:41]} {[%emt 00:00:12]} Rd2 {[%clk 00:01:01]} {[%emt
00:00:18]} 43. Bf1 {[%clk 00:01:51]} Ng4 {[%clk 00:00:44]} {[%emt 00:00:26]} 44.
a4 {[%clk 00:01:17]} {[%emt 00:00:44]} Rxf2 {[%clk 00:00:33]} {[%emt 00:00:21]}
45. axb5 {[%clk 00:01:12]} {[%emt 00:00:15]} Rf3+ {[%clk 00:00:41]} {[%emt
00:00:01]} 46. Kg2 {[%clk 00:01:21]} Rd2+ {[%clk 00:00:51]} 0-1

[Event "FIDE U16 Olympiad_boards_1-80"]
[Site "Eindhoven, Netherlands"]
[Date "2023.08.14"]
[Round "3.34"]
[White "Morkunas, Gustas"]
[Black "Balint, Peter"]
[Result "1-0"]
[TimeControl "2700+10"]
[WhiteElo "2069"]
[BlackElo "2162"]

1. e4 {[%clk 00:45:17]} {[%emt 00:00:03]} c5 {[%clk 00:45:17]} {[%emt
00:00:04]} 2. Nf3 {[%clk 00:45:25]} {[%emt 00:00:02]} e6 {[%clk 00:45:26]}
{[%emt 00:00:01]} 3. d4 {[%clk 00:45:34]} cxd4 {[%clk 00:45:35]} {[%emt
00:00:02]} 4. Nxd4 {[%clk 00:45:43]} a6 {[%clk 00:45:44]} {[%emt 00:00:01]} 5.
Nc3 {[%clk 00:45:51]} b5 {[%clk 00:45:53]} {[%emt 00:00:03]} 6. Bd3 {[%clk
00:45:53]} {[%emt 00:00:07]} Bb7 {[%clk 00:46:01]} {[%emt 00:00:02]} 7. O-O
{[%clk 00:45:59]} {[%emt 00:00:04]} Nc6 {[%clk 00:46:09]} 8. Nxc6 {[%clk
00:45:35]} {[%emt 00:00:34]} Bxc6 {[%clk 00:46:17]} {[%emt 00:00:02]} 9. Re1
{[%clk 00:45:44]} {[%emt 00:00:02]} Ne7 {[%clk 00:46:24]} {[%emt 00:00:03]} 10.
Bf1 {[%clk 00:45:02]} {[%emt 00:00:50]} Ng6 {[%clk 00:44:02]} {[%emt 00:02:34]}
11. Be3 {[%clk 00:43:51]} {[%emt 00:01:21]} Be7 {[%clk 00:41:53]} {[%emt
00:02:19]} 12. a4 {[%clk 00:38:58]} {[%emt 00:05:03]} bxa4 {[%clk 00:35:29]}
{[%emt 00:06:34]} 13. Nxa4 {[%clk 00:35:51]} {[%emt 00:03:17]} O-O {[%clk
00:35:07]} {[%emt 00:00:32]} 14. Nb6 {[%clk 00:29:44]} {[%emt 00:06:17]} Rb8
{[%clk 00:33:57]} {[%emt 00:01:20]} 15. Rxa6 {[%clk 00:29:12]} {[%emt
00:00:41]} Qc7 {[%clk 00:31:10]} {[%emt 00:02:58]} 16. c3 {[%clk 00:26:31]}
{[%emt 00:02:51]} d6 {[%clk 00:26:35]} {[%emt 00:04:45]} 17. f3 {[%clk
00:23:00]} {[%emt 00:03:41]} Rb7 {[%clk 00:25:30]} {[%emt 00:01:15]} 18. b4
{[%clk 00:15:38]} {[%emt 00:07:32]} Rfb8 {[%clk 00:23:42]} {[%emt 00:01:58]} 19.
Na4 {[%clk 00:12:43]} {[%emt 00:03:05]} Bxa4 {[%clk 00:23:20]} {[%emt
00:00:32]} 20. Rxa4 {[%clk 00:12:45]} {[%emt 00:00:08]} Qxc3 {[%clk 00:23:23]}
{[%emt 00:00:06]} 21. b5 {[%clk 00:12:54]} {[%emt 00:00:02]} Bd8 {[%clk
00:19:54]} {[%emt 00:03:39]} 22. Qc1 {[%clk 00:06:57]} {[%emt 00:06:08]} Qxc1
{[%clk 00:17:21]} {[%emt 00:02:42]} 23. Rxc1 {[%clk 00:07:01]} {[%emt
00:00:06]} Ne7 {[%clk 00:15:26]} {[%emt 00:02:06]} 24. Kh1 {[%clk 00:04:11]}
{[%emt 00:03:00]} Kf8 {[%clk 00:13:37]} {[%emt 00:01:58]} 25. Ra6 {[%clk
00:02:46]} {[%emt 00:01:35]} d5 {[%clk 00:12:35]} {[%emt 00:01:13]} 26. Bf4
{[%clk 00:02:48]} {[%emt 00:00:08]} Rxb5 {[%clk 00:08:04]} {[%emt 00:04:40]} 27.
Bxb5 {[%clk 00:02:50]} {[%emt 00:00:08]} Rxb5 {[%clk 00:08:10]} {[%emt
00:00:04]} 28. Ra8 {[%clk 00:02:31]} {[%emt 00:00:30]} Ke8 {[%clk 00:08:17]}
{[%emt 00:00:03]} 29. Bc7 {[%clk 00:01:54]} {[%emt 00:00:46]} Nc6 {[%clk
00:08:22]} {[%emt 00:00:05]} 30. Bxd8 {[%clk 00:01:14]} {[%emt 00:00:49]} Nxd8
{[%clk 00:08:30]} {[%emt 00:00:04]} 31. exd5 {[%clk 00:01:13]} {[%emt
00:00:10]} Rxd5 {[%clk 00:08:09]} {[%emt 00:00:30]} 32. Ra7 {[%clk 00:00:51]}
{[%emt 00:00:33]} Rd7 {[%clk 00:08:09]} {[%emt 00:00:10]} 33. Rxd7 {[%clk
00:00:35]} {[%emt 00:00:26]} Kxd7 {[%clk 00:08:18]} {[%emt 00:00:01]} 34. Kg1
{[%clk 00:00:43]} {[%emt 00:00:03]} e5 {[%clk 00:08:06]} {[%emt 00:00:21]} 35.
Kf2 {[%clk 00:00:36]} {[%emt 00:00:18]} Ke6 {[%clk 00:06:23]} {[%emt 00:01:53]}
36. Rc7 {[%clk 00:00:42]} {[%emt 00:00:03]} Kd6 {[%clk 00:06:26]} {[%emt
00:00:07]} 37. Ra7 {[%clk 00:00:51]} {[%emt 00:00:01]} Ke6 {[%clk 00:06:00]}
{[%emt 00:00:37]} 38. Ke3 {[%clk 00:00:47]} {[%emt 00:00:14]} Nc6 {[%clk
00:05:55]} {[%emt 00:00:14]} 39. Rb7 {[%clk 00:00:30]} {[%emt 00:00:27]} Ne7
{[%clk 00:03:21]} {[%emt 00:02:45]} 40. Rb6+ {[%clk 00:00:21]} {[%emt
00:00:18]} Kd5 {[%clk 00:03:23]} {[%emt 00:00:08]} 41. g4 {[%clk 00:00:19]}
{[%emt 00:00:13]} f6 {[%clk 00:00:55]} {[%emt 00:02:38]} 42. Rb5+ {[%clk
00:00:23]} {[%emt 00:00:06]} Kc6 {[%clk 00:00:58]} {[%emt 00:00:07]} 43. Ra5
{[%clk 00:00:26]} {[%emt 00:00:07]} Nd5+ {[%clk 00:00:15]} {[%emt 00:00:52]} 44.
Ke4 {[%clk 00:00:31]} {[%emt 00:00:05]} Ne7 {[%clk 00:00:25]} 45. Ra7 {[%clk
00:00:38]} {[%emt 00:00:03]} Kd6 {[%clk 00:00:34]} 46. Ra6+ {[%clk 00:00:41]}
{[%emt 00:00:07]} Kd7 {[%clk 00:00:39]} {[%emt 00:00:05]} 47. h4 {[%clk
00:00:44]} {[%emt 00:00:06]} Nc8 {[%clk 00:00:31]} {[%emt 00:00:19]} 48. g5
{[%clk 00:00:42]} {[%emt 00:00:12]} Nd6+ {[%clk 00:00:37]} {[%emt 00:00:04]} 49.
Kd5 {[%clk 00:00:51]} {[%emt 00:00:01]} Ne8 {[%clk 00:00:45]} {[%emt 00:00:01]}
50. Ra7+ {[%clk 00:00:29]} {[%emt 00:00:32]} Nc7+ {[%clk 00:00:44]} {[%emt
00:00:11]} 51. Ke4 {[%clk 00:00:26]} {[%emt 00:00:13]} Kc6 {[%clk 00:00:25]}
{[%emt 00:00:30]} 52. gxf6 {[%clk 00:00:30]} {[%emt 00:00:05]} gxf6 {[%clk
00:00:31]} {[%emt 00:00:05]} 53. Kf5 {[%clk 00:00:38]} {[%emt 00:00:01]} Kd6
{[%clk 00:00:17]} {[%emt 00:00:25]} 54. Kxf6 {[%clk 00:00:38]} {[%emt
00:00:10]} Nd5 {[%clk 00:00:26]} 55. Kf5 {[%clk 00:00:38]} {[%emt 00:00:09]}
Ne7+ {[%clk 00:00:29]} {[%emt 00:00:08]} 56. Rxe7 {[%clk 00:00:47]} Kxe7 {[%clk
00:00:36]} {[%emt 00:00:03]} 57. Kxe5 {[%clk 00:00:57]} {[%emt 00:00:01]} Kf7
{[%clk 00:00:44]} {[%emt 00:00:02]} 58. Kf5 {[%clk 00:01:00]} {[%emt 00:00:06]}
Kg7 {[%clk 00:00:52]} {[%emt 00:00:03]} 59. Ke6 {[%clk 00:01:08]} {[%emt
00:00:02]} Kf8 {[%clk 00:00:30]} {[%emt 00:00:32]} 60. Kf6 {[%clk 00:01:15]}
{[%emt 00:00:02]} Kg8 {[%clk 00:00:39]} 61. f4 {[%clk 00:01:21]} {[%emt
00:00:03]} Kf8 {[%clk 00:00:48]} 62. h5 {[%clk 00:01:23]} {[%emt 00:00:09]} Kg8
{[%clk 00:00:55]} {[%emt 00:00:03]} 63. h6 {[%clk 00:01:24]} {[%emt 00:00:09]}
Kf8 {[%clk 00:00:56]} {[%emt 00:00:09]} 64. f5 {[%clk 00:01:32]} {[%emt
00:00:02]} Ke8 {[%clk 00:00:55]} {[%emt 00:00:11]} 65. Kg7 {[%clk 00:01:41]}
{[%emt 00:00:02]} Ke7 {[%clk 00:01:05]} 66. f6+ {[%clk 00:01:49]} {[%emt
00:00:01]} 1-0

[Event "FIDE U16 Olympiad_boards_1-80"]
[Site "Eindhoven, Netherlands"]
[Date "2023.08.14"]
[Round "3.35"]
[White "Ernst, Robert"]
[Black "Rudzkis, Vilius"]
[Result "1-0"]
[TimeControl "2700+10"]
[WhiteElo "2088"]
[BlackElo "1835"]

1. d4 {[%clk 00:45:18]} Nf6 {[%clk 00:45:11]} {[%emt 00:00:09]} 2. c4 {[%clk
00:45:25]} {[%emt 00:00:04]} g6 {[%clk 00:45:17]} {[%emt 00:00:03]} 3. Nc3
{[%clk 00:45:31]} {[%emt 00:00:04]} d5 {[%clk 00:45:22]} {[%emt 00:00:05]} 4.
Nf3 {[%clk 00:45:37]} {[%emt 00:00:03]} Bg7 {[%clk 00:45:28]} {[%emt 00:00:05]}
5. Qb3 {[%clk 00:45:45]} {[%emt 00:00:03]} dxc4 {[%clk 00:45:26]} {[%emt
00:00:12]} 6. Qxc4 {[%clk 00:45:53]} {[%emt 00:00:02]} O-O {[%clk 00:45:23]}
{[%emt 00:00:13]} 7. e4 {[%clk 00:46:01]} {[%emt 00:00:02]} Be6 {[%clk
00:45:12]} {[%emt 00:00:21]} 8. d5 {[%clk 00:45:47]} {[%emt 00:00:24]} Bc8
{[%clk 00:45:19]} {[%emt 00:00:03]} 9. Be2 {[%clk 00:44:50]} {[%emt 00:01:07]}
e6 {[%clk 00:45:04]} {[%emt 00:00:24]} 10. O-O {[%clk 00:44:44]} {[%emt
00:00:15]} exd5 {[%clk 00:45:02]} {[%emt 00:00:14]} 11. exd5 {[%clk 00:44:38]}
{[%emt 00:00:16]} c6 {[%clk 00:44:41]} {[%emt 00:00:31]} 12. dxc6 {[%clk
00:43:22]} {[%emt 00:01:26]} Nxc6 {[%clk 00:44:44]} {[%emt 00:00:08]} 13. Rd1
{[%clk 00:42:57]} {[%emt 00:00:34]} Qa5 {[%clk 00:43:41]} {[%emt 00:01:12]} 14.
Qh4 {[%clk 00:40:30]} {[%emt 00:02:37]} Qb4 {[%clk 00:38:31]} {[%emt 00:05:20]}
15. Qxb4 {[%clk 00:39:30]} {[%emt 00:01:11]} Nxb4 {[%clk 00:38:39]} {[%emt
00:00:02]} 16. Bf4 {[%clk 00:39:09]} {[%emt 00:00:30]} Nc6 {[%clk 00:37:08]}
{[%emt 00:01:41]} 17. Nb5 {[%clk 00:37:11]} {[%emt 00:02:08]} Bf5 {[%clk
00:34:20]} {[%emt 00:02:58]} 18. Nd6 {[%clk 00:32:47]} {[%emt 00:04:34]} Nh5
{[%clk 00:33:53]} {[%emt 00:00:38]} 19. Be3 {[%emt 00:03:36]} Bc2 {[%clk
00:32:38]} 20. Rd2 {[%clk 00:29:43]} {[%emt 00:01:13]} Ba4 {[%clk 00:21:34]}
{[%emt 00:11:14]} 21. Nxb7 {[%clk 00:28:23]} {[%emt 00:01:30]} Ne5 {[%clk
00:19:12]} {[%emt 00:02:32]} 22. Nc5 {[%clk 00:27:51]} {[%emt 00:00:42]} Bc6
{[%clk 00:18:43]} {[%emt 00:00:39]} 23. Nd4 {[%clk 00:25:56]} {[%emt 00:02:06]}
Rac8 {[%clk 00:15:51]} {[%emt 00:03:02]} 24. Nxc6 {[%clk 00:25:52]} {[%emt
00:00:13]} Rxc6 {[%clk 00:15:35]} {[%emt 00:00:26]} 25. Rad1 {[%clk 00:25:45]}
{[%emt 00:00:17]} Nf6 {[%clk 00:12:40]} {[%emt 00:03:05]} 26. h3 {[%clk
00:25:35]} {[%emt 00:00:20]} h5 {[%clk 00:09:46]} {[%emt 00:03:05]} 27. b4
{[%clk 00:24:33]} {[%emt 00:01:11]} Rfc8 {[%clk 00:08:34]} {[%emt 00:01:21]} 28.
Rd8+ {[%clk 00:24:37]} {[%emt 00:00:06]} Kh7 {[%clk 00:07:36]} {[%emt
00:01:09]} 29. f4 {[%clk 00:22:37]} {[%emt 00:02:10]} Bh6 {[%clk 00:06:44]}
{[%emt 00:01:02]} 30. Kf2 {[%clk 00:22:37]} {[%emt 00:00:09]} 1-0